bitfinex-derivatives/quotes_ETHF0:USTF0_20260128
["timestamp","ask_amount","ask_price","bid_price","bid_amount"]
[1769643631077,0.00370106,3011.7,3010.8,1.47096864]
[1769643631277,1.45853638,3011.7,3010.8,1.47096864]
[1769643632482,1.45483532,3011.5,3010.6,4.63396864]
[1769643632989,1.45483532,3011.1,3010.2,1.47096864]
[1769643634176,1.45483532,3011.4,3010.4,1.06100504]
[1769643634381,1.45483532,3011.4,3010.7,1.47096864]
[1769643634777,1.45853638,3011.7,3010.7,1.47096864]
[1769643635083,1.45853638,3011.7,3010.0,3.32935]
[1769643635084,1.45853638,3011.7,3010.9,1.47096864]
[1769643641086,1.45853638,3011.7,3010.9,1.41096864]
[1769643647488,0.00370106,3011.7,3010.9,1.41096864]
[1769643648487,0.00370106,3011.7,3010.6,2.103]
[1769643648488,1.45483532,3012.1,3011.2,1.47096864]
[1769643649496,1.45899073,3012.1,3011.2,1.47096864]
[1769643649991,0.00415541,3012.1,3011.4,1.47096864]
[1769643656500,2.74707376,3011.8,3011.2,1.71477632]
[1769643656704,1.69022413,3012.1,3011.2,1.71477632]
[1769643658903,0.00415541,3012.1,3011.2,1.71477632]
[1769643661806,1.69022413,3012.1,3011.2,1.71477632]
[1769643663001,0.00415541,3012.1,3011.2,1.71477632]
[1769643669210,0.001,3011.8,3011.2,1.71477632]
[1769643669908,0.00415541,3012.1,3011.2,1.71477632]
[1769643676110,0.00415541,3012.1,3011.1,6.04172311]
[1769643676111,0.00415541,3012.1,3011.4,1.71477632]
[1769643676613,2.74707376,3012.6,3011.4,1.71477632]
[1769643676914,3.13995401,3012.5,3011.4,1.71477632]
[1769643677106,1.68606872,3012.6,3011.6,1.71477632]
[1769643677306,4.72783633,3012.8,3011.7,1.71477632]
[1769643677508,0.16619,3012.9,3011.7,1.71477632]
[1769643677509,6.80746261,3012.7,3011.8,1.71477632]
[1769643677717,1.69029321,3012.7,3011.8,1.71784686]
[1769643679518,0.00422449,3012.7,3012.0,1.71477632]
[1769643680013,0.62240722,3013.1,3012.4,1.71477632]
[1769643681111,0.62503133,3013.1,3012.4,1.71477632]
[1769643683115,0.00262411,3013.1,3012.4,1.71477632]
[1769643683713,2.74707376,3012.5,3011.8,1.71784686]
[1769643685019,1.68606872,3012.5,3011.8,1.71784686]
[1769643685321,1.96818064,3012.7,3011.8,1.71784686]
[1769643686024,1.98076257,3013.0,3011.8,1.71784686]
[1769643686025,1.96818064,3012.9,3011.8,1.71784686]
[1769643686211,3.24579714,3012.8,3011.8,1.71784686]
[1769643686410,1.96818064,3012.9,3011.8,1.71784686]
[1769643686725,5.2140474,3012.8,3011.8,1.71784686]
[1769643686913,1.96818064,3012.8,3011.8,1.71784686]
[1769643688619,29.72813162,3013.1,3011.8,1.71784686]
[1769643688829,3.24614748,3013.0,3011.8,1.71784686]
[1769643689127,0.00262411,3013.1,3011.8,1.71784686]
[1769643690325,0.00262411,3013.1,3012.0,2.05673269]
[1769643691213,1.89795432,3013.1,3012.0,2.05673269]
[1769643694529,1.89795432,3013.1,3012.0,1.89049269]
[1769643695130,1.89533021,3012.8,3011.8,1.89356323]
[1769643696217,1.89533021,3013.0,3011.8,1.89356323]
[1769643697020,0.00262411,3013.1,3011.8,1.89356323]
[1769643703420,1.89795432,3013.1,3011.8,1.89356323]
[1769643706139,0.00262411,3013.1,3011.8,1.89356323]
[1769643706330,0.00262411,3013.1,3011.9,0.16624]
[1769643706634,0.00262411,3013.1,3012.0,1.89049269]
[1769643708130,0.00262411,3013.1,3012.0,2.05673269]
[1769643716643,2.85721489,3013.7,3012.0,2.05673269]
[1769643716844,3.22297045,3013.6,3012.2,2.72436402]
[1769643717040,3.22297045,3013.5,3012.2,2.72436402]
[1769643717242,2.85721489,3013.7,3012.2,2.72436402]
[1769643717442,3.22355445,3013.6,3012.2,2.72436402]
[1769643717742,3.22355445,3013.5,3012.2,2.72436402]
[1769643717947,2.86142287,3013.6,3012.2,2.72436402]
[1769643718133,3.2235545,3013.5,3012.2,2.72436402]
[1769643718338,2.86142287,3013.6,3012.2,2.72436402]
[1769643718545,3.22431885,3013.5,3012.2,2.72436402]
[1769643718843,2.86142287,3013.6,3012.2,2.72436402]
[1769643719045,3.22431655,3013.5,3012.2,2.72436402]
[1769643719245,2.86142287,3013.6,3012.2,2.72436402]
[1769643719443,3.22429441,3013.5,3012.2,2.72436402]
[1769643719642,2.86142287,3013.6,3012.2,2.72436402]
[1769643719947,3.22429101,3013.5,3012.2,2.72436402]
[1769643720146,2.86142287,3013.6,3012.2,2.72436402]
[1769643720446,3.22428615,3013.5,3012.2,2.72436402]
[1769643720645,2.86142287,3013.6,3012.2,2.72436402]
[1769643720845,3.22452625,3013.5,3012.2,2.72436402]
[1769643721047,2.86142287,3013.6,3012.2,2.72436402]
[1769643721237,3.22453848,3013.5,3012.2,2.72436402]
[1769643721441,2.86142287,3013.6,3012.2,2.72436402]
[1769643721637,6.08161532,3013.5,3012.2,2.72436402]
[1769643721842,2.85721489,3013.5,3012.2,2.72436402]
[1769643723445,2.85721489,3013.3,3012.3,5.57036402]
[1769643723851,2.85721489,3013.3,3012.4,2.72436402]
[1769643724651,2.85721489,3013.4,3012.4,2.72436402]
[1769643729557,2.85721489,3013.4,3012.4,5.58336402]
[1769643729760,2.85721489,3013.4,3012.4,2.72436402]
[1769643730559,2.85721489,3013.2,3012.4,2.72436402]
[1769643733255,2.85721489,3013.2,3012.0,2.72436402]
[1769643733460,2.85721489,3013.2,3012.1,2.72436402]
[1769643733862,2.85721489,3013.2,3012.1,5.92336402]
[1769643734865,2.85721489,3013.2,3012.2,2.72436402]
[1769643739269,2.85721489,3013.2,3012.2,3.207]
[1769643739967,2.85721489,3013.0,3012.2,3.207]
[1769643740864,2.85721489,3013.0,3012.2,5.93136402]
[1769643743167,2.85721489,3013.0,3012.3,2.72436402]
[1769643743370,2.85721489,3013.2,3012.3,2.72436402]
[1769643748975,1.98403345,3013.4,3012.3,2.72436402]
[1769643749177,3.2360089,3013.3,3012.3,2.72436402]
[1769643749375,3.56589735,3013.4,3012.3,2.72436402]
[1769643749584,3.23602371,3013.3,3012.3,2.72436402]
[1769643749771,3.56589735,3013.4,3012.3,2.72436402]
[1769643750077,3.23602782,3013.3,3012.3,2.72436402]
[1769643750264,3.56589735,3013.4,3012.3,2.72436402]
[1769643750469,3.23608501,3013.3,3012.3,2.72436402]
[1769643750671,3.56589735,3013.4,3012.3,2.72436402]
[1769643750875,3.2361456,3013.3,3012.3,2.72436402]
[1769643751079,6.80204079,3013.2,3012.3,2.72436402]
[1769643751280,3.56589735,3013.2,3012.3,2.72436402]
[1769643754273,3.56589735,3013.2,3012.4,3.69609809]
[1769643758082,3.56589735,3013.2,3012.5,6.92709809]
[1769643762885,3.56589735,3013.2,3012.6,3.69609809]
[1769643776788,5.67517049,3013.4,3012.6,3.69609809]
[1769643776988,3.24038959,3013.3,3012.6,3.69609809]
[1769643777192,3.24038959,3013.2,3012.6,3.69609809]
[1769643777388,3.68959468,3013.3,3012.6,3.69609809]
[1769643777588,3.2404136,3013.2,3012.6,3.69609809]
[1769643777887,3.68959468,3013.3,3012.6,3.69609809]
[1769643778081,3.24041379,3013.2,3012.6,3.69609809]
[1769643778281,3.68959468,3013.3,3012.6,3.69609809]
[1769643778488,3.24052301,3013.2,3012.6,3.69609809]
[1769643778691,3.68959468,3013.3,3012.6,3.69609809]
[1769643778888,3.24051439,3013.2,3012.6,3.69609809]
[1769643779089,1.98557581,3013.4,3012.6,3.69609809]
[1769643779290,3.24065261,3013.3,3012.8,3.44810613]
[1769643779484,1.98978379,3013.6,3012.8,3.44810613]
[1769643779685,3.24077567,3013.5,3012.8,3.44810613]
[1769643779887,0.00420798,3013.6,3012.8,3.44810613]
[1769643781294,0.00420798,3013.6,3012.5,3.231]
[1769643781295,0.00420798,3013.6,3013.0,3.44810613]
[1769643781596,0.00420798,3013.6,3012.9,1.05950545]
[1769643781597,3.68959468,3014.0,3013.2,3.44810613]
[1769643781793,3.23876667,3013.9,3013.2,3.44810613]
[1769643782086,3.23876667,3013.8,3013.2,6.72010613]
[1769643782292,3.68959468,3014.0,3013.2,6.72010613]
[1769643782494,3.23706215,3013.9,3013.2,6.72010613]
[1769643782694,3.69315779,3014.0,3013.3,3.44810613]
[1769643782890,3.23705419,3013.9,3013.3,3.44810613]
[1769643783090,3.69315779,3014.0,3013.3,3.44810613]
[1769643786798,0.00356311,3014.0,3013.3,3.44810613]
[1769643788900,3.68959468,3014.2,3013.1,1.05950545]
[1769643789101,3.68959468,3014.2,1768.2,3.45040675]
[1769643789102,1.05950545,3013.4,3012.2,0.16623]
[1769643789311,3.68959468,3013.3,3012.3,1.949]
[1769643789807,3.69357693,3013.3,3012.3,1.949]
[1769643790907,3.69357693,3013.3,3012.4,3.44810613]
[1769643792400,3.69157693,3013.3,3012.4,3.44810613]
[1769643803020,3.69157693,3013.3,3012.4,4.50761158]
[1769643803219,3.69157693,3013.3,3012.5,3.44810613]
[1769643804223,3.68959468,3012.9,3012.3,3.298]
[1769643806917,3.68959468,3012.9,3011.8,2.98492157]
[1769643807225,3.68959468,3012.9,3012.1,3.305]
[1769643807719,3.68959468,3012.9,3012.1,3.307]
[1769643818632,3.68959468,3012.9,3012.1,6.19590897]
[1769643819328,3.68959468,3012.9,3012.1,3.307]
[1769643823138,3.68959468,3012.9,3012.0,2.88890897]
[1769643823435,3.68959468,3012.9,3012.1,3.323]
[1769643830941,3.68959468,3012.9,3011.8,0.00307054]
[1769643831146,3.68959468,3012.9,3011.9,3.335]
[1769643834051,3.68959468,3012.9,3011.9,5.60923947]
[1769643838453,2.12884955,3012.7,3011.8,0.00307054]
[1769643838648,2.12884955,3012.7,3012.0,3.343]
[1769643839245,2.12884955,3012.7,3011.8,0.00307054]
[1769643839549,2.12884955,3012.7,3011.9,3.343]
[1769643840440,2.12884955,3012.7,3011.8,0.00307054]
[1769643840644,2.12884955,3012.7,3011.4,3.344]
[1769643840645,2.12884955,3012.5,3011.4,3.344]
[1769643841050,2.12884955,3012.5,3011.5,1.94614715]
[1769643841552,2.12884955,3012.5,3011.5,1.94916916]
[1769643843852,2.12884955,3012.5,3011.6,3.348]
[1769643845446,2.12884955,3012.5,3011.6,5.18297]
[1769643845848,2.12884955,3012.5,3011.7,1.80138364]
[1769643846057,2.12884955,3012.5,3011.8,1.80138364]
[1769643846547,2.12884955,3012.7,3011.8,1.80138364]
[1769643846745,3.22644422,3012.6,3011.8,1.80138364]
[1769643846948,2.12884955,3012.7,3011.8,1.80138364]
[1769643847250,2.12884955,3012.5,3011.8,1.80138364]
[1769643848158,2.12884955,3012.8,3011.8,1.80138364]
[1769643848345,2.12884955,3013.0,3011.8,1.80138364]
[1769643849349,0.00398225,3013.3,3012.2,1.67886525]
[1769643849555,2.1328318,3013.3,3012.2,1.67886525]
[1769643856165,0.00398225,3013.3,3012.2,1.67886525]
[1769643857361,2.1328318,3013.3,3012.2,1.67886525]
[1769643865273,2.1328318,3013.3,3012.3,3.353]
[1769643869574,2.1328318,3013.3,3012.5,0.94756983]
[1769643869779,2.1328318,3013.3,3012.6,1.98100639]
[1769643870073,0.00398225,3013.3,3012.8,1.98100639]
[1769643870866,0.001,3013.4,3012.8,1.98100639]
[1769643871675,1.55296805,3013.4,3012.8,1.98100639]
[1769643871877,1.55661279,3013.4,3012.8,1.98100639]
[1769643872177,1.55661279,3013.4,3012.8,0.92153688]
[1769643876176,0.00464474,3013.4,3012.8,0.92153688]
[1769643876477,1.55196805,3013.6,3012.8,0.92153688]
[1769643877371,1.55530806,3013.6,3012.8,0.92153688]
[1769643878276,1.55530806,3013.6,3012.3,3.51922]
[1769643878277,1.55196805,3013.5,3012.5,0.73471405]
[1769643878680,1.55196805,3013.3,3012.6,3.358]
[1769643879178,1.55196805,3013.3,3012.7,3.359]
[1769643879377,0.00334001,3013.6,3012.1,0.70106045]
[1769643879378,1.55196805,3013.1,3012.1,0.70106045]
[1769643879570,1.55196805,3013.1,3012.2,3.36]
[1769643880179,1.55196805,3013.1,3012.2,4.03658229]
[1769643882268,1.55196805,3013.1,3012.3,0.64582001]
[1769643884781,0.86122906,3013.8,3013.5,0.01601297]
[1769643885087,1.58683397,3014.7,3013.7,6.03724269]
[1769643885280,1.58683397,3014.7,3013.7,1.05946951]
[1769643885776,1.58952347,3014.7,3013.7,1.06232872]
[1769643890387,1.58952347,3014.7,3013.7,0.00285921]
[1769643890587,1.58952347,3014.7,3013.8,3.381]
[1769643890788,1.58952347,3014.7,3013.9,1.05946951]
[1769643890988,1.58952347,3014.7,3013.8,3.381]
[1769643892389,1.58952347,3014.7,3013.7,0.00285921]
[1769643892589,1.58952347,3014.7,3013.8,3.385]
[1769643892790,1.58952347,3014.7,3013.9,3.386]
[1769643900988,1.58952347,3014.7,3013.8,3.387]
[1769643901296,1.58952347,3014.7,3012.3,3.78337578]
[1769643901297,1.59617051,3013.9,3012.9,0.16619]
[1769643901487,1.59617051,3013.9,3013.0,6.707]
[1769643902488,1.59617051,3013.9,3013.0,6.71005317]
[1769643902688,1.59617051,3013.9,3013.1,1.05946951]
[1769643904398,0.35974437,3013.9,3013.3,1.05946951]
[1769643904598,1.05946951,3014.6,3013.3,1.25758114]
[1769643904993,0.0026895,3014.7,3013.5,1.05946951]
[1769643906493,1.12944785,3014.6,3013.5,1.05946951]
[1769643908704,1.12944785,3014.6,3013.5,1.19684706]
[1769643908901,1.12944785,3014.6,3013.7,1.05946951]
[1769643909290,1.12944785,3014.6,3013.7,1.19684706]
[1769643911002,1.12944785,3014.6,3013.5,1.16635575]
[1769643911797,1.12944785,3014.6,3013.6,3.389]
[1769643913100,1.12944785,3014.6,3013.7,3.39]
[1769643921808,1.12944785,3014.5,3013.7,3.39]
[1769643922812,1.12944785,3014.5,3013.3,6.03724269]
[1769643923011,1.12944785,3014.5,3013.4,3.393]
[1769643927519,0.91312047,3014.4,3013.3,6.03724269]
[1769643927823,0.91312047,3014.4,3013.5,3.405]
[1769643929116,0.91312047,3014.4,3013.4,3.408]
[1769643937725,0.91312047,3014.4,3013.3,4.97777318]
[1769643937927,0.91312047,3014.4,3013.5,3.432]
[1769643943025,0.91312047,3014.4,3013.6,3.442]
[1769643944834,0.91312047,3014.4,3013.3,4.97777318]
[1769643945034,0.91312047,3014.4,3013.4,3.443]
[1769643952242,0.91312047,3014.4,3013.4,8.42077318]
[1769643952835,0.91312047,3014.4,3013.4,3.443]
[1769643953032,0.91312047,3014.4,3013.4,8.42077318]
[1769643956845,0.91312047,3014.4,3013.4,3.443]
[1769643960550,0.91312047,3014.4,3013.4,8.42077318]
[1769643961545,0.91312047,3014.4,3013.4,4.97777318]
[1769643961751,0.91312047,3014.4,3013.5,3.484]
[1769643961953,0.87139234,3014.6,3013.5,3.484]
[1769643962250,0.87139234,3014.6,3013.5,8.46177318]
[1769643969745,0.87139234,3014.6,3013.7,4.97777318]
[1769643970155,0.0026895,3014.7,3013.8,4.97777318]
[1769643971752,0.86221471,3015.4,3014.0,6.03652546]
[1769643971951,0.86221471,3015.2,3014.0,6.03652546]
[1769643972647,0.8651142,3015.2,3014.0,6.03652546]
[1769643973453,0.8651142,3015.2,3014.0,6.20265546]
[1769643975257,0.8651142,3015.2,3014.1,6.834]
[1769643980651,0.8651142,3015.2,3013.5,10.95883455]
[1769643980652,0.85393936,3015.0,3013.5,10.95883455]
[1769643980862,0.85393936,3015.0,3013.6,3.523]
[1769643981261,0.85393936,3015.0,3013.3,4.97777318]
[1769643981561,0.85393936,3015.0,3013.4,3.436]
[1769643984169,0.84218125,3014.6,3013.3,4.97777318]
[1769643984465,0.84218125,3014.6,3013.0,6.15029454]
[1769643984466,0.84218125,3014.6,3013.4,3.533]
[1769643989575,0.81603736,3014.3,3013.4,3.533]
[1769644000277,0.81603736,3014.3,3013.7,1.0587759]
[1769644002186,0.81603736,3014.3,3013.7,1.0587759]
[1769644004382,0.81603736,3014.3,3013.5,1.0587759]
[1769644008185,0.81603736,3014.3,3013.4,3.533]
[1769644010488,0.81603736,3014.3,3013.5,1.0587759]
[1769644011591,0.81603736,3014.3,3013.3,1.0587759]
[1769644011790,0.81603736,3014.3,3013.4,3.548]
[1769644014994,0.81603736,3014.3,3013.5,1.0587759]
[1769644015396,0.81603736,3014.3,3013.7,1.0587759]
[1769644015893,2.78656014,3014.8,3014.1,1.0587759]
[1769644016085,3.99164099,3014.7,3014.1,1.0587759]
[1769644016284,3.99164099,3014.6,3014.1,1.0587759]
[1769644016493,0.80369511,3014.6,3014.1,1.0587759]
[1769644019090,0.81313465,3014.8,3014.1,1.0587759]
[1769644020688,0.81292049,3015.1,3014.5,1.0587759]
[1769644020894,0.00289949,3015.2,3014.5,1.0587759]
[1769644021095,0.81591204,3015.2,3014.5,1.0587759]
[1769644021402,0.81591204,3015.2,3014.3,4.1147759]
[1769644021595,0.81591204,3015.2,3014.3,3.056]
[1769644022592,0.81591204,3015.2,3014.1,1.0587759]
[1769644022799,0.8156402,3015.1,3014.2,1.953]
[1769644026996,1.0587759,3015.0,3013.7,1.0587759]
[1769644027195,0.81676288,3014.9,3013.8,3.544]
[1769644028099,0.81676288,3014.9,3013.4,5.98106137]
[1769644028100,0.81676288,3014.9,3013.9,4.6037759]
[1769644028801,0.81676288,3014.9,3013.9,3.545]
[1769644030206,0.81676288,3014.9,3013.9,4.6037759]
[1769644033108,0.81676288,3014.9,3013.9,3.545]
[1769644033610,0.8154663,3014.7,3013.5,1.0587759]
[1769644033810,0.8154663,3014.5,3013.5,4.6067759]
[1769644035519,0.8154663,3014.5,3013.3,1.0587759]
[1769644035715,0.16607,3015.1,3013.1,4.3797759]
[1769644035716,0.8149951,3014.3,3013.1,4.3797759]
[1769644035915,0.8149951,3014.3,3013.2,3.549]
[1769644036218,1.0587759,3014.0,3013.0,0.00305317]
[1769644036413,0.8147848,3013.9,3013.0,3.55205317]
[1769644038810,0.8147848,3013.9,3013.0,4.61082907]
[1769644040822,0.8147848,3013.9,3013.0,1.06182907]
[1769644041124,0.8147848,3013.9,3013.1,3.555]
[1769644051129,0.80983688,3014.5,3013.7,1.0587759]
[1769644051524,0.80983688,3014.5,3013.1,3.555]
[1769644051830,0.80983688,3014.5,3013.1,4.61356231]
[1769644052328,0.80983688,3014.5,3013.2,0.16617]
[1769644053330,0.81251623,3014.9,3013.5,1.05856231]
[1769644053524,0.81251623,3014.9,3013.9,1.05856231]
[1769644053833,0.81251623,3014.9,3014.0,2.937]
[1769644056929,0.81251623,3014.9,3013.6,0.16615]
[1769644057324,0.81251623,3014.9,3013.7,2.641]
[1769644061936,0.81251623,3014.9,3013.9,1.05856231]
[1769644070139,0.00289949,3015.2,3013.9,1.05856231]
[1769644071144,0.00289949,3015.2,3013.9,1.22469231]
[1769644071741,0.00289949,3015.2,3013.9,6.19265494]
[1769644071942,0.00289949,3015.2,3013.9,1.22469231]
[1769644072142,0.41042175,3015.2,3013.9,6.19265494]
[1769644074549,0.41042175,3015.2,3014.0,3.321]
[1769644074753,0.40659611,3015.5,3014.3,1.05856231]
[1769644075746,0.40993097,3015.5,3014.3,1.05856231]
[1769644083562,0.40993097,3015.5,3014.3,6.02652494]
[1769644084259,0.40993097,3015.5,3014.4,0.1661]
[1769644084657,0.40993097,3015.5,3014.7,1.05856231]
[1769644084861,0.40993097,3015.5,3014.8,3.568]
[1769644085064,0.39555371,3016.0,3014.8,3.568]
[1769644085562,0.39555371,3016.0,3015.1,1.05856231]
[1769644086063,0.39934091,3016.0,3015.1,1.05856231]
[1769644087263,0.0037872,3016.0,3015.1,1.05856231]
[1769644090556,0.0037872,3016.0,3015.1,4.37856231]
[1769644093359,0.3948091,3016.8,3015.1,4.54463231]
[1769644093560,0.3948091,3016.8,3015.3,0.16605]
[1769644093761,0.3948091,3016.8,3015.4,0.16605]
[1769644094069,0.3948091,3016.8,3015.5,1.05856231]
[1769644094262,0.39892196,3016.8,3015.5,1.06118984]
[1769644094669,0.39892196,3016.8,3015.9,1.05856231]
[1769644094870,0.39892196,3016.8,3016.0,3.574]
[1769644095365,0.39892196,3016.8,3015.6,0.16604]
[1769644095669,0.39892196,3016.8,3015.7,6.895]
[1769644097267,40.8,3017.8,3015.9,1.22458231]
[1769644097268,0.39900396,3017.1,3015.9,1.22458231]
[1769644098267,0.4017191,3017.1,3015.9,1.22458231]
[1769644098570,0.00271514,3017.1,3015.9,1.22458231]
[1769644099170,0.39889469,3017.1,3015.9,1.22458231]
[1769644100774,0.39889469,3017.1,3016.0,6.896]
[1769644102475,0.39889469,3017.1,3016.1,6.897]
[1769644103571,0.39889469,3017.1,3016.2,3.58]
[1769644110672,0.39889469,3017.1,3015.5,4.97059016]
[1769644110877,0.39889469,3017.1,3015.9,3.319]
[1769644111574,0.39704511,3016.9,3015.9,3.319]
[1769644114170,0.39704511,3016.9,3016.2,1.05690769]
[1769644114578,0.00271514,3017.1,3016.4,1.05690769]
[1769644115373,0.39527189,3017.1,3016.5,3.593]
[1769644115972,0.39249558,3016.5,3015.6,3.319]
[1769644116173,0.39249558,3016.5,3015.7,3.594]
[1769644116571,0.39249558,3016.5,3015.5,3.32162753]
[1769644116877,0.39300775,3016.3,3015.5,3.32162753]
[1769644117077,0.39300775,3016.1,3015.1,4.96796263]
[1769644117279,0.39300775,3015.9,3015.2,3.599]
[1769644117572,0.39300775,3015.9,3015.0,0.75567943]
[1769644117774,0.39300775,3015.9,3015.1,3.599]
[1769644117975,0.39294588,3015.5,3014.6,4.96796263]
[1769644118175,0.39294588,3015.5,3014.7,3.602]
[1769644118476,0.39294588,3015.3,3014.7,3.603]
[1769644119079,0.39294588,3015.3,3014.6,0.00317281]
[1769644119276,0.39294588,3015.3,3014.6,3.60617281]
[1769644120182,0.39294588,3015.3,3014.6,0.00317281]
[1769644120375,0.39294588,3015.3,3014.4,3.405]
[1769644120577,0.39487231,3015.1,3013.9,4.37590769]
[1769644120777,0.39487231,3014.9,3013.9,3.319]
[1769644121483,0.3947788,3014.7,3013.9,0.00242697]
[1769644123081,0.3947788,3014.7,3013.1,4.96796263]
[1769644123282,0.3947788,3014.7,3013.2,6.739]
[1769644124286,0.3947788,3014.7,3013.2,6.74257712]
[1769644126485,0.3947788,3014.7,3013.2,0.00357712]
[1769644126781,0.3947788,3014.7,3013.3,3.613]
[1769644127485,0.3947788,3014.7,3013.2,0.00357712]
[1769644127676,0.3947788,3014.7,3013.3,3.613]
[1769644127975,0.3947788,3014.7,3013.2,0.00357712]
[1769644141982,0.3947788,3014.7,3013.2,1.59138461]
[1769644142183,0.3947788,3014.7,3013.3,0.16616]
[1769644144990,0.3947788,3014.7,3013.2,1.59138461]
[1769644144991,0.3947788,3014.7,3013.4,1.948]
[1769644146300,0.3947788,3014.7,3013.2,0.00357712]
[1769644149398,0.38688306,3014.5,3013.2,0.00357712]
[1769644149598,0.38688306,3014.1,3013.2,0.00357712]
[1769644152100,0.38688306,3014.1,3012.9,1.05900894]
[1769644153098,0.38688306,3014.1,3012.9,1.06287038]
[1769644154605,0.3882794,3013.9,3012.9,1.06287038]
[1769644155402,0.3882794,3013.9,3013.1,1.05900894]
[1769644157611,0.3882794,3013.9,3012.9,0.00386144]
[1769644171417,0.3882794,3013.9,3013.0,3.594]
[1769644182335,0.3882794,3013.9,3012.9,0.00386144]
[1769644182537,0.38707432,3013.7,3012.4,4.96796263]
[1769644182728,0.38707432,3013.5,3012.3,4.96796263]
[1769644183227,0.38707432,3013.5,3012.2,8.56596263]
[1769644183422,0.38701423,3013.3,3012.1,4.96796263]
[1769644183628,3.17006954,3013.2,3012.1,0.00409851]
[1769644183828,0.38701423,3013.1,3012.1,0.00409851]
[1769644184126,0.38701423,3013.1,3011.9,3.601]
[1769644185036,0.38701423,3013.1,3011.9,3.60435787]
[1769644190838,0.38701423,3013.1,3011.9,0.00335787]
[1769644195946,0.38601423,3013.1,3011.9,0.00335787]
[1769644196539,0.38501423,3013.1,3011.9,0.00335787]
[1769644197839,1.95948439,3013.8,3011.9,0.00335787]
[1769644198041,5.12660842,3013.8,3011.9,0.00335787]
[1769644198539,5.12660842,3013.8,3012.2,1.0590178]
[1769644198936,2.12561439,3014.0,3012.2,1.0590178]
[1769644199135,3.33400766,3013.9,3012.2,1.0590178]
[1769644199336,3.16787766,3013.8,3012.3,1.949]
[1769644199544,3.16787766,3013.7,3012.2,1.949]
[1769644199841,0.38777554,3013.6,3012.2,1.949]
[1769644200937,0.38777554,3013.6,3012.2,3.0080178]
[1769644202647,0.38777554,3013.6,3012.6,1.0590178]
[1769644202845,1.95948439,3014.2,3012.6,1.0590178]
[1769644203045,5.13154414,3014.3,3012.6,1.0590178]
[1769644203248,3.17205975,3014.2,3012.6,1.2252178]
[1769644203439,1.95948439,3014.4,3012.6,1.2252178]
[1769644203845,5.13212784,3014.4,3012.6,1.2252178]
[1769644204855,0.19648355,3014.3,3012.6,1.2252178]
[1769644205048,0.19648355,3014.1,3012.6,1.2252178]
[1769644206455,0.19645835,3014.3,3013.0,1.0590178]
[1769644206655,0.19645835,3014.3,3013.1,3.323]
[1769644206855,0.19645835,3014.3,3013.2,1.949]
[1769644208554,0.19645835,3014.3,3013.4,1.0590178]
[1769644209451,0.19645835,3014.3,3013.0,1.2251978]
[1769644209654,0.19645835,3014.3,3013.1,5.373]
[1769644215454,0.19645835,3014.3,3012.4,5.98106137]
[1769644215655,0.19645835,3014.3,3012.5,6.518]
[1769644220960,0.19645835,3014.3,3012.5,11.47591727]
[1769644221462,0.19645835,3014.3,3012.5,11.64212727]
[1769644222064,0.19645835,3014.3,3012.6,4.95791727]
[1769644224159,0.19645835,3014.3,3012.7,4.95791727]
[1769644224356,0.19645835,3014.3,3012.6,4.95791727]
[1769644224861,1.0590178,3014.2,3012.6,4.95791727]
[1769644225165,0.19393771,3014.1,3012.6,4.95791727]
[1769644225759,0.19393771,3014.1,3012.7,3.603]
[1769644226570,0.19392063,3013.9,3012.7,3.603]
[1769644228173,0.19448712,3013.7,3012.7,3.603]
[1769644230569,0.19448712,3013.7,3012.2,4.95791727]
[1769644230772,0.19448712,3013.7,3012.3,3.604]
[1769644231069,0.19448712,3013.7,3012.1,8.44614727]
[1769644231070,0.19448712,3013.7,3012.1,5.12414727]
[1769644232568,0.19570347,3013.5,3012.0,8.55891727]
[1769644232769,0.19570347,3013.5,3012.0,3.601]
[1769644233764,0.19570347,3013.5,3012.0,8.55891727]
[1769644233969,0.19570347,3013.5,3012.0,8.72515727]
[1769644234360,0.19570347,3013.5,3012.0,3.76724]
[1769644234973,0.19570347,3013.5,3012.0,8.72515727]
[1769644235169,0.19570347,3013.5,3012.0,4.8262578]
[1769644235674,0.19570347,3013.5,3012.4,1.05933932]
[1769644242884,1.25504279,3013.5,3012.2,1.05933932]
[1769644243074,0.19834951,3013.4,3012.2,1.05933932]
[1769644249784,0.19834951,3013.4,3012.4,1.05933932]
[1769644251187,0.19834951,3013.4,3012.2,1.05933932]
[1769644255084,0.19648769,3013.2,3012.1,8.55291727]
[1769644255292,0.19648769,3013.2,3012.2,1.05933932]
[1769644260584,0.19648769,3013.2,3012.2,6.01725659]
[1769644260884,0.20005832,3013.4,3012.6,1.05933932]
[1769644261286,3.17920491,3013.3,3012.8,1.05933932]
[1769644261488,1.97725409,3013.6,3013.0,1.05933932]
[1769644261691,2.17731241,3013.7,3012.8,1.05933932]
[1769644261890,0.20004153,3013.6,3012.8,1.05933932]
[1769644263195,0.19920399,3013.7,3012.8,1.05933932]
[1769644266294,0.197214,3013.6,3012.5,4.95791727]
[1769644266485,0.197214,3013.4,3012.4,8.56691727]
[1769644266988,0.197214,3013.4,3012.4,3.609]
[1769644268891,0.197214,3013.4,3012.4,4.66833932]
[1769644271996,1.97725409,3013.7,3013.2,0.44478313]
[1769644272198,0.20026813,3013.8,3013.0,1.05933932]
[1769644277499,0.20026813,3013.8,3012.8,1.05933932]
[1769644278003,0.1993579,3013.1,3012.5,4.95791727]
[1769644278193,0.1993579,3013.1,3012.2,8.28091727]
[1769644278599,0.1993579,3013.1,3012.2,3.323]
[1769644281807,0.19731715,3012.7,3011.9,0.00335787]
[1769644282106,0.20046179,3012.7,3011.9,0.00335787]
[1769644292205,0.20046179,3012.7,3011.9,1.06269719]
[1769644292999,7.60633932,3013.2,3012.5,1.05933932]
[1769644293000,0.19995902,3013.2,3012.5,1.05933932]
[1769644293308,0.19995902,3013.2,3012.7,1.05933932]
[1769644293510,0.19995902,3013.2,3012.5,1.05933932]
[1769644294010,0.20358271,3013.2,3012.1,1.05933932]
[1769644294208,1.06296301,3013.2,3011.9,1.06269719]
[1769644294413,0.19994746,3013.1,3011.9,1.06269719]
[1769644294711,0.19994746,3013.1,3012.1,1.05933932]
[1769644294913,0.19994746,3013.1,3012.3,1.05933932]
[1769644295114,0.00362369,3013.2,3012.5,1.05933932]
[1769644297107,0.19833844,3013.4,3012.8,1.05933932]
[1769644297714,0.19833844,3013.4,3012.3,1.05912647]
[1769644298020,0.20155516,3013.4,3012.3,1.05912647]
[1769644301917,0.00321672,3013.4,3012.3,1.05912647]
[1769644303820,0.20609828,3013.4,3012.3,1.05912647]
[1769644305616,0.20609828,3013.4,3012.2,0.16623]
[1769644316622,0.20609828,3013.4,3011.9,10.36654571]
[1769644316825,0.20609828,3013.4,3011.9,3.32635787]
[1769644321130,0.19538109,3013.2,3011.9,3.32635787]
[1769644322536,0.19538109,3013.2,3012.2,1.05912647]